bitfinex/quotes_BTCUSD_20250830
["timestamp","ask_amount","ask_price","bid_price","bid_amount"]
[1756560721326,0.57534865,108710.0,108700.0,0.2691]
[1756560721532,0.57534865,108710.0,108700.0,0.42858]
[1756560722723,0.57534865,108710.0,108700.0,0.2691]
[1756560722920,0.57534865,108710.0,108700.0,0.4287]
[1756560723346,0.57534865,108710.0,108700.0,0.42866]
[1756560723557,0.57534865,108710.0,108700.0,0.2691]
[1756560723832,0.57534865,108710.0,108700.0,0.42862]
[1756560725516,0.56888185,108710.0,108700.0,0.42854]
[1756560725735,0.57534557,108710.0,108700.0,0.42854]
[1756560726183,0.52399264,108700.0,108690.0,0.07076]
[1756560726406,0.54769938,108700.0,108690.0,0.2302]
[1756560727975,0.57636638,108700.0,108690.0,0.2302]
[1756560728835,0.57633652,108700.0,108690.0,0.2302]
[1756560731265,0.56987919,108700.0,108690.0,0.2302]
[1756560736213,0.56986373,108700.0,108690.0,0.23341]
[1756560737114,0.56986424,108700.0,108690.0,0.23341]
[1756560740192,0.57631476,108700.0,108690.0,0.23551]
[1756560740559,0.56986424,108700.0,108690.0,0.23551]
[1756560741830,0.56986424,108700.0,108690.0,0.50461]
[1756560743285,0.57631723,108700.0,108690.0,0.50461]
[1756560745030,0.56986424,108700.0,108690.0,0.50461]
[1756560746561,0.56988017,108700.0,108690.0,0.50425]
[1756560746878,0.57633787,108700.0,108690.0,0.50425]
[1756560747117,0.57633787,108700.0,108690.0,0.34517]
[1756560747317,0.57633787,108700.0,108690.0,0.49894]
[1756560747977,0.57633787,108700.0,108690.0,0.2691]
[1756560748195,0.57633787,108700.0,108690.0,0.42822]
[1756560749459,0.57633787,108700.0,108690.0,0.43133]
[1756560751311,0.57633787,108700.0,108690.0,0.43343]
[1756560754733,0.61856646,108700.0,108690.0,0.27221]
[1756560754931,0.57633787,108700.0,108690.0,0.43117]
[1756560755134,0.57633787,108700.0,108690.0,0.2691]
[1756560755336,0.57633787,108700.0,108690.0,0.4281]
[1756560755583,0.60112824,108700.0,108690.0,0.4281]
[1756560756230,0.62099784,108700.0,108690.0,0.4281]
[1756560756828,0.62099784,108700.0,108690.0,0.43121]
[1756560757322,0.62103189,108700.0,108690.0,0.43121]
[1756560758021,0.62103189,108700.0,108690.0,0.43331]
[1756560759052,0.62103082,108700.0,108690.0,0.43331]
[1756560759162,0.59624045,108700.0,108690.0,0.43331]
[1756560767662,0.59623939,108700.0,108690.0,0.43331]
[1756560767857,0.59623138,108700.0,108690.0,0.43331]
[1756560768288,0.59623113,108700.0,108690.0,0.43331]
[1756560771429,0.59623113,108700.0,108690.0,0.43267]
[1756560771859,0.59623113,108700.0,108690.0,0.27431]
[1756560772310,0.59623113,108700.0,108690.0,0.43057]
[1756560772512,0.59623113,108700.0,108690.0,0.43254]
[1756560774285,0.59621987,108700.0,108690.0,0.27221]
[1756560774496,0.59621987,108700.0,108690.0,0.2691]
[1756560774702,0.59621987,108700.0,108690.0,0.42734]
[1756560774913,0.59621987,108700.0,108690.0,0.43049]
[1756560778225,0.59621987,108700.0,108690.0,0.43246]
[1756560778435,0.59622387,108700.0,108690.0,0.43246]
[1756560779090,0.59622443,108700.0,108690.0,0.43246]
[1756560781547,0.59622443,108700.0,108690.0,0.27422]
[1756560781936,0.59622443,108700.0,108690.0,0.43242]
[1756560787206,0.25622443,108700.0,108690.0,0.43242]
[1756560787829,0.25622967,108700.0,108690.0,0.43242]
[1756560788666,0.2562299,108700.0,108690.0,0.43242]
[1756560789072,0.25623047,108700.0,108690.0,0.43242]
[1756560790153,0.59623047,108700.0,108690.0,0.43242]
[1756560798326,0.58976342,108700.0,108690.0,0.43242]
[1756560798540,0.59623937,108700.0,108690.0,0.43242]
[1756560799197,0.59623949,108700.0,108690.0,0.43242]
[1756560799396,0.59516651,108700.0,108690.0,0.43242]
[1756560802501,0.59516651,108700.0,108690.0,0.2691]
[1756560802691,0.62067759,108700.0,108690.0,0.42762]
[1756560802901,0.67000807,108700.0,108690.0,0.42762]
[1756560803243,0.65958584,108700.0,108690.0,0.42762]
[1756560803659,0.63407476,108700.0,108690.0,0.42762]
[1756560807776,0.63407476,108700.0,108690.0,0.43073]
[1756560809026,0.63406742,108700.0,108690.0,0.43073]
[1756560813443,0.18400956,108690.0,108680.0,0.07076]
[1756560813667,0.22758207,108690.0,108680.0,0.15808]
[1756560813918,0.31790839,108690.0,108680.0,0.15808]
[1756560814144,0.34557939,108690.0,108680.0,0.15808]
[1756560814583,0.68557939,108690.0,108680.0,0.15808]
[1756560815542,0.59728307,108690.0,108680.0,0.16219]
[1756560815749,0.59728307,108690.0,108680.0,0.16424]
[1756560815965,0.59728013,108690.0,108680.0,0.16624]
[1756560816171,0.59728013,108690.0,108680.0,0.16524]
[1756560816596,0.59728013,108690.0,108680.0,0.16319]
[1756560816807,0.68557645,108690.0,108680.0,0.16319]
[1756560817233,5.68557645,108690.0,108680.0,0.16319]
[1756560817942,5.68557645,108690.0,108680.0,0.16008]
[1756560818589,5.68557645,108690.0,108680.0,0.002]
[1756560818809,5.68557645,108690.0,108680.0,0.15988]
[1756560819492,5.66186522,108690.0,108680.0,0.15988]
[1756560819710,5.68555626,108690.0,108680.0,0.15988]
[1756560820142,5.68555612,108690.0,108680.0,0.15988]
[1756560820367,5.37898411,108690.0,108680.0,0.15988]
[1756560820550,5.56299339,108690.0,108680.0,0.16299]
[1756560821446,5.56299339,108690.0,108680.0,0.00511]
[1756560821646,5.56299339,108690.0,108680.0,0.16291]
[1756560822402,5.56299339,108690.0,108680.0,0.16496]
[1756560823062,5.56299286,108690.0,108680.0,0.16496]
[1756560823426,5.56299286,108690.0,108680.0,0.1598]
[1756560823578,5.65128918,108690.0,108680.0,0.1598]
[1756560824784,5.65128918,108690.0,108680.0,0.16291]
[1756560824985,5.65128918,108690.0,108680.0,0.1598]
[1756560825427,5.56299286,108690.0,108680.0,0.1598]
[1756560826122,5.56299286,108690.0,108680.0,0.16496]
[1756560827721,5.55653361,108690.0,108680.0,0.16496]
[1756560827948,5.56299287,108690.0,108680.0,0.16496]
[1756560828160,5.56299287,108690.0,108680.0,0.16291]
[1756560829203,5.65128919,108690.0,108680.0,0.16291]
[1756560830007,5.65128919,108690.0,108680.0,0.16506]
[1756560830671,5.56299287,108690.0,108680.0,0.16506]
[1756560831758,5.56299287,108690.0,108680.0,0.16291]
[1756560833418,5.56299287,108690.0,108680.0,0.16506]
[1756560833747,5.56299287,108690.0,108680.0,0.16291]
[1756560834513,5.56299287,108690.0,108680.0,0.16506]
[1756560835734,5.56299287,108690.0,108680.0,0.16291]
[1756560835934,5.65128919,108690.0,108680.0,0.16291]
[1756560837781,5.56299287,108690.0,108680.0,0.16506]
[1756560837994,5.56299287,108690.0,108680.0,0.16291]
[1756560838209,5.56299751,108690.0,108680.0,0.16291]
[1756560840560,5.56299751,108690.0,108680.0,0.16506]
[1756560841466,5.56299751,108690.0,108680.0,0.16291]
[1756560842104,5.56299751,108690.0,108680.0,0.16506]
[1756560842326,5.56299751,108690.0,108680.0,0.16291]
[1756560842468,5.65129383,108690.0,108680.0,0.16291]
[1756560842897,5.67580138,108690.0,108680.0,0.16291]
[1756560843335,5.85830431,108690.0,108680.0,0.16279]
[1756560843546,5.77000799,108690.0,108680.0,0.16279]
[1756560844383,5.61232799,108690.0,108680.0,0.002]
[1756560844621,0.18404343,108670.0,108660.0,0.34287]
[1756560844822,0.20773415,108670.0,108660.0,0.23356]
[1756560845227,0.23540915,108670.0,108660.0,0.23356]
[1756560845922,0.23540915,108670.0,108660.0,0.23403759]
[1756560846144,0.2447739,108670.0,108660.0,0.23403759]
[1756560847620,0.24478006,108670.0,108660.0,0.23403759]
[1756560848252,0.24577991,108670.0,108660.0,0.23403759]
[1756560851099,0.26563279,108670.0,108660.0,0.23403759]
[1756560851320,0.26563279,108670.0,108660.0,0.58048032]
[1756560851529,0.55485491,108670.0,108660.0,0.67346033]
[1756560851742,0.55485491,108670.0,108660.0,0.3270176]
[1756560851955,0.55485382,108670.0,108660.0,0.3270176]
[1756560852607,0.55485382,108670.0,108660.0,0.1693776]
[1756560852874,0.55485382,108670.0,108660.0,0.3270976]
[1756560853986,0.55485382,108670.0,108660.0,0.23407759]
[1756560854333,0.55682382,108670.0,108660.0,0.07639759]
[1756560854553,0.58133137,108670.0,108660.0,0.22887759]
[1756560854769,0.58133137,108670.0,108660.0,0.23403759]
[1756560856279,0.58133137,108670.0,108660.0,0.07639759]
[1756560856500,0.58133137,108670.0,108660.0,0.00047759]
[1756560856725,0.58399137,108670.0,108660.0,0.15819759]
[1756560857359,5.58399137,108670.0,108660.0,0.15819759]
[1756560858253,5.58397863,108670.0,108660.0,0.15819759]
[1756560858889,5.74185863,108670.0,108660.0,0.15819759]
[1756560859310,5.83015495,108670.0,108660.0,0.15819759]
[1756560859751,5.8499912,108670.0,108660.0,0.00047759]
[1756560859983,5.94297121,108670.0,108660.0,1e-08]
[1756560860637,5.85467489,108670.0,108660.0,1e-08]
[1756560861253,5.87949782,108670.0,108660.0,1e-08]
[1756560862325,5.90717782,108670.0,108660.0,1e-08]
[1756560862550,5.90817782,108670.0,108660.0,1e-08]
[1756560862772,5.90741782,108670.0,108660.0,1e-08]
[1756560863436,5.97367316,108670.0,108660.0,1e-08]
[1756560864691,5.97267316,108670.0,108660.0,1e-08]
[1756560864906,5.97463316,108670.0,108660.0,1e-08]
[1756560865254,5.81389316,108670.0,108660.0,1e-08]
[1756560865464,5.97197316,108670.0,108660.0,0.00512001]
[1756560865668,5.90771782,108670.0,108660.0,0.00512001]
[1756560865878,5.90771782,108670.0,108660.0,1e-08]
[1756560867591,5.88289489,108670.0,108660.0,1e-08]
[1756560868592,5.84975844,108670.0,108660.0,0.00512001]
[1756560868738,5.85617286,108670.0,108660.0,0.00512001]
[1756560869552,5.69829286,108670.0,108660.0,0.00512001]
[1756560869767,0.85617286,108670.0,108660.0,0.00512001]
[1756560869988,0.69829286,108670.0,108660.0,0.00512001]
[1756560870229,0.26531285,108670.0,108660.0,0.00512001]
[1756560870647,0.60531285,108670.0,108660.0,0.00512001]
[1756560871334,0.26531285,108670.0,108660.0,0.00512001]
[1756560871544,0.26331285,108670.0,108660.0,0.00512001]
[1756560871749,0.26131285,108670.0,108660.0,0.00512001]
[1756560871963,0.5814766,108670.0,108660.0,0.00512001]
[1756560872184,0.58148219,108670.0,108660.0,0.00512001]
[1756560872407,0.23503535,108670.0,108660.0,0.16312001]
[1756560872614,0.54735535,108670.0,108660.0,0.16312001]
[1756560872834,0.54735535,108670.0,108660.0,0.23392001]
[1756560874791,0.54735535,108670.0,108660.0,0.23592001]
[1756560875279,0.54735535,108670.0,108660.0,0.50502001]
[1756560876240,0.54735535,108670.0,108660.0,0.50602001]
[1756560878034,0.5379906,108670.0,108660.0,0.94564116]
[1756560878234,0.52079343,108670.0,108660.0,0.94564116]
[1756560881331,0.18402649,108680.0,108660.0,1.12970153]
[1756560881563,0.18402649,108680.0,108670.0,0.09599001]
[1756560881779,0.18402649,108680.0,108670.0,0.44704169]
[1756560881985,0.18402649,108680.0,108670.0,0.44474115]
[1756560882518,0.18402649,108680.0,108670.0,0.09810001]
[1756560882731,0.18402649,108680.0,108670.0,0.10040055]
[1756560882898,0.18402649,108680.0,108670.0,0.44704169]
[1756560883133,0.18402649,108680.0,108670.0,0.44474115]
[1756560883660,0.18402649,108680.0,108670.0,0.44974115]
[1756560885500,0.53321003,108690.0,108670.0,0.90288458]
[1756560885675,0.53321003,108690.0,108680.0,0.50654147]
[1756560885879,0.53321003,108690.0,108680.0,0.60234115]
[1756560886631,0.53321003,108690.0,108680.0,1.05546764]
[1756560889530,0.53321003,108690.0,108680.0,1.08413164]
[1756560890958,0.53321003,108690.0,108680.0,1.12486173]
[1756560893294,0.20651989,108700.0,108680.0,1.12486173]
[1756560893532,0.19732026,108700.0,108690.0,0.69971082]
[1756560893787,0.53317461,108710.0,108690.0,0.69741071]
[1756560893974,0.55032487,108710.0,108700.0,0.51130104]
[1756560894177,0.53317461,108710.0,108700.0,0.71376115]
[1756560894380,0.53317461,108710.0,108700.0,0.44466115]
[1756560894619,0.53317461,108710.0,108700.0,0.60210115]
[1756560895219,0.5336525,108710.0,108700.0,0.60210115]
[1756560895739,0.5336525,108710.0,108700.0,0.09802001]
[1756560896020,0.5336525,108710.0,108700.0,0.25767991]
[1756560896243,0.5336525,108710.0,108700.0,0.25538001]
[1756560896660,0.5336525,108710.0,108700.0,0.09802001]
[1756560896884,0.5336525,108710.0,108700.0,0.25738001]
[1756560897490,0.55080599,108710.0,108700.0,0.25938001]
[1756560898045,0.55080599,108710.0,108700.0,0.25818001]
[1756560898451,0.55080599,108710.0,108700.0,0.25810001]
[1756560898861,0.57846699,108710.0,108700.0,0.25810001]
[1756560899033,0.55080599,108710.0,108700.0,0.52720001]
[1756560900038,0.57846699,108710.0,108700.0,0.52720001]
[1756560900247,0.5613135,108710.0,108700.0,0.52720001]
[1756560900475,0.55082539,108710.0,108700.0,0.52720001]
[1756560901293,0.57848639,108710.0,108700.0,0.52720001]
[1756560901819,0.58049639,108710.0,108700.0,0.36992001]
[1756560902036,0.58049639,108710.0,108700.0,0.52712001]
[1756560902475,0.57848639,108710.0,108700.0,0.52712001]
[1756560903051,0.58049639,108710.0,108700.0,0.52712001]
[1756560903449,0.58049639,108710.0,108700.0,0.36992001]
[1756560903671,0.58049639,108710.0,108700.0,0.52708001]
[1756560907126,0.58049639,108710.0,108700.0,0.52704001]
[1756560909482,0.58347823,108710.0,108700.0,0.36608001]
[1756560909691,0.58347823,108710.0,108700.0,0.52320001]
[1756560909908,0.5662735,108710.0,108700.0,0.52320001]
[1756560910125,0.58347804,108710.0,108700.0,0.52320001]
[1756560910507,0.58348178,108710.0,108700.0,0.52324001]
[1756560910706,0.58348107,108710.0,108700.0,0.52324001]
[1756560911279,0.58053107,108710.0,108700.0,0.52324001]
[1756560912815,0.55287007,108710.0,108700.0,0.52324001]
[1756560913373,0.55582007,108710.0,108700.0,0.2731]
[1756560913591,0.55582007,108710.0,108700.0,0.43014]
[1756560913991,0.56227619,108710.0,108700.0,0.2731]
[1756560914200,0.56227619,108710.0,108700.0,0.4301]
[1756560914839,0.56227619,108710.0,108700.0,0.4281]
[1756560915247,0.56227619,108710.0,108700.0,0.4261]
[1756560916081,0.56327619,108710.0,108700.0,0.4261]
[1756560916565,0.56032619,108710.0,108700.0,0.4261]
[1756560916965,0.56327619,108710.0,108700.0,0.157]
[1756560917475,0.90954095,108710.0,108700.0,0.157]
[1756560918857,0.93720595,108710.0,108700.0,0.157]
[1756560920560,0.93722137,108710.0,108700.0,0.157]
[1756560922390,0.59095661,108710.0,108700.0,0.157]
[1756560922559,0.93722137,108710.0,108700.0,0.157]
[1756560922771,0.93722137,108710.0,108700.0,0.4261]
[1756560926169,0.93427137,108710.0,108700.0,0.4261]
[1756560926536,0.93226137,108710.0,108700.0,0.42821]
[1756560926740,0.93226137,108710.0,108700.0,0.43136]
[1756560927140,0.57953867,108710.0,108700.0,0.43136]
[1756560927359,0.57953667,108710.0,108700.0,0.43136]
[1756560927770,0.55187167,108710.0,108700.0,0.52434001]
[1756560928346,0.55187167,108710.0,108700.0,0.52534001]
[1756560928735,0.55187167,108710.0,108700.0,0.25624001]
[1756560928858,0.55187167,108710.0,108700.0,0.25524001]
[1756560929300,0.55187167,108710.0,108700.0,0.25724001]
[1756560930092,0.55087167,108710.0,108700.0,0.25724001]
[1756560930525,0.55087167,108710.0,108700.0,0.25824001]
[1756560930924,0.5336525,108710.0,108700.0,0.25824001]
[1756560931177,0.55087288,108710.0,108700.0,0.26024001]
[1756560932421,0.89713764,108710.0,108700.0,0.26024001]
[1756560932855,0.55087288,108710.0,108700.0,0.26024001]
[1756560933060,0.89713764,108710.0,108700.0,0.26024001]
[1756560934089,0.55087288,108710.0,108700.0,0.44423265]
[1756560934345,0.55087288,108710.0,108700.0,0.26024001]
[1756560934565,0.55087238,108710.0,108700.0,0.26024001]
[1756560934763,0.55087238,108710.0,108700.0,0.52934001]
[1756560934985,0.5336525,108710.0,108700.0,0.52934001]
[1756560935520,0.31535215,108710.0,108700.0,0.37234001]
[1756560935717,0.49935937,108710.0,108700.0,0.52930001]
[1756560935950,0.50855815,108710.0,108700.0,0.52930001]
[1756560936192,0.50855815,108710.0,108700.0,0.37234001]
[1756560936363,0.85482291,108710.0,108700.0,0.37234001]
[1756560936732,0.85482291,108710.0,108700.0,0.52930001]
[1756560936960,0.85482291,108710.0,108700.0,0.37234001]
[1756560937188,0.85482291,108710.0,108700.0,0.52930001]
[1756560938062,0.50855815,108710.0,108700.0,0.52930001]
[1756560938514,0.85482291,108710.0,108700.0,0.52930001]
[1756560945420,0.85482291,108710.0,108700.0,0.71329265]
[1756560945836,0.85482291,108710.0,108700.0,0.52930001]
[1756560946109,0.85482291,108710.0,108700.0,0.37234001]
[1756560946398,0.85482291,108710.0,108700.0,0.52926001]
[1756560946611,0.85684291,108710.0,108700.0,0.52926001]
[1756560947747,0.85482291,108710.0,108700.0,0.52926001]
[1756560948161,0.85684291,108710.0,108700.0,0.52926001]
[1756560948775,0.85482291,108710.0,108700.0,0.52926001]
[1756560949075,0.50855815,108710.0,108700.0,0.52926001]
[1756560949276,0.85482291,108710.0,108700.0,0.52926001]
[1756560949861,0.85680291,108710.0,108700.0,0.52926001]
[1756560951676,0.54192865,108710.0,108700.0,0.52926001]
[1756560953399,0.55707359,108710.0,108700.0,0.52926001]
[1756560954365,0.55707359,108710.0,108700.0,0.37234001]
[1756560954494,0.55905359,108710.0,108700.0,0.52926001]
[1756560956758,0.3151432,108710.0,108700.0,0.52926001]
[1756560956962,0.32434198,108710.0,108700.0,0.52926001]
[1756560957196,0.5083492,108710.0,108700.0,0.52926001]
[1756560961063,0.5114692,108710.0,108700.0,0.52396001]
[1756560961484,0.50837022,108710.0,108700.0,0.52925001]
[1756560962521,0.50639022,108710.0,108700.0,0.52925001]
[1756560963561,0.21045711,108710.0,108700.0,0.71324265]
[1756560963769,0.54741794,108710.0,108700.0,0.71324265]
[1756560963982,0.5447341,108710.0,108700.0,0.71324265]
[1756560964886,0.50151565,108720.0,108700.0,1.05940226]
[1756560965081,0.51885645,108720.0,108710.0,0.28242541]
[1756560965292,0.51885645,108720.0,108710.0,0.36525001]
[1756560965684,0.51885645,108720.0,108710.0,0.36737001]
[1756560965893,0.51885645,108720.0,108710.0,0.43813001]
[1756560966504,0.51885645,108720.0,108710.0,0.62210572]
[1756560966904,0.50160354,108720.0,108710.0,0.62210572]
[1756560967106,0.18404668,108720.0,108710.0,0.62210572]
[1756560967310,0.18404668,108720.0,108710.0,0.62310572]
[1756560967901,0.18404668,108720.0,108710.0,0.66537888]
[1756560968481,0.18404668,108720.0,108710.0,0.66637888]
[1756560970518,0.18404668,108720.0,108710.0,0.48240317]
[1756560970737,0.18602668,108720.0,108710.0,0.63928317]
[1756560970954,0.53207028,108720.0,108710.0,0.63928317]
[1756560972076,0.53009028,108720.0,108710.0,0.63928317]
[1756560973473,0.53207028,108720.0,108710.0,0.63928317]
[1756560973680,0.53009028,108720.0,108710.0,0.63928317]
[1756560974647,0.53207028,108720.0,108710.0,0.63395317]
[1756560974848,0.53519028,108720.0,108710.0,0.47711317]
[1756560975094,0.90889188,108720.0,108710.0,0.63395317]
[1756560975300,0.58006449,108720.0,108710.0,0.63395317]
[1756560975500,0.92610809,108720.0,108710.0,0.54097316]
[1756560976149,0.23402089,108720.0,108710.0,0.34186]
[1756560976362,0.92610809,108720.0,108710.0,0.4987]
[1756560977337,0.92610809,108720.0,108710.0,0.4977]
[1756560977754,0.92610809,108720.0,108710.0,0.4967]
[1756560978895,1.04639185,108720.0,108710.0,0.4967]
[1756560979237,1.06622257,108720.0,108710.0,0.4967]
[1756560979487,0.97792625,108720.0,108710.0,0.4967]
[1756560979892,0.97792625,108720.0,108710.0,0.15684]
[1756560981184,0.60423097,108720.0,108710.0,0.15684]
[1756560981389,0.58440025,108720.0,108710.0,0.15684]
[1756560981804,0.58751025,108720.0,108710.0,0.15684]
[1756560982708,0.5874995,108720.0,108710.0,0.15684]
[1756560983584,0.5874989,108720.0,108710.0,0.15684]
[1756560984576,0.5864989,108720.0,108710.0,0.15684]
[1756560985238,0.5864989,108720.0,108710.0,0.15784]
[1756560986043,0.5833889,108720.0,108710.0,0.15784]
[1756560986387,0.57697584,108720.0,108710.0,0.16312]
[1756560987014,0.57697584,108720.0,108710.0,0.15989]
[1756560987238,0.57697584,108720.0,108710.0,0.16089]
[1756560989304,0.22891224,108720.0,108710.0,0.16089]
[1756560989458,0.57495584,108720.0,108710.0,0.16412]
[1756560989677,0.57697489,108720.0,108710.0,0.16412]
[1756560989888,0.57697489,108720.0,108710.0,0.15884]
[1756560990317,0.57697489,108720.0,108710.0,0.002]
[1756560990477,0.57697489,108720.0,108710.0,0.1588]
[1756560990478,0.92612849,108720.0,108710.0,0.1588]
[1756560990682,0.58008489,108720.0,108710.0,0.1588]
[1756560991178,0.58008489,108720.0,108710.0,0.4279]
[1756560993313,0.58008453,108720.0,108710.0,0.4279]
[1756560993926,0.58008476,108720.0,108710.0,0.4279]
[1756560994874,0.92008476,108720.0,108710.0,0.4279]
[1756560996124,1.26612836,108720.0,108710.0,0.4279]
[1756560997459,0.92008476,108720.0,108710.0,0.4279]
[1756560997670,0.91697476,108720.0,108710.0,0.4279]
[1756560999436,1.26973515,108720.0,108710.0,0.4279]
[1756561000300,1.26974382,108720.0,108710.0,0.4279]
[1756561003668,1.26976992,108720.0,108710.0,0.4279]
[1756561004338,0.59728042,108720.0,108710.0,0.43318]
[1756561004546,1.28962928,108720.0,108710.0,0.43318]
[1756561005800,0.59728042,108720.0,108710.0,0.43318]
[1756561005944,1.28962928,108720.0,108710.0,0.43318]
[1756561006160,1.28962928,108720.0,108710.0,0.42995]
[1756561008256,1.28962928,108720.0,108710.0,0.43318]
[1756561008582,1.28962928,108720.0,108710.0,0.16408]
[1756561011564,0.59728042,108720.0,108710.0,0.16408]
[1756561011781,1.28760928,108720.0,108710.0,0.16408]
[1756561012019,0.59526042,108720.0,108710.0,0.16408]
[1756561012229,1.28760928,108720.0,108710.0,0.16408]
[1756561013162,1.28973928,108720.0,108710.0,0.16408]
[1756561013788,1.28973928,108720.0,108710.0,0.16087]
[1756561013984,1.28973928,108720.0,108710.0,0.16393]
[1756561014270,1.2660429,108720.0,108710.0,0.16393]
[1756561014512,1.28976898,108720.0,108710.0,0.16393]
[1756561014933,1.28977057,108720.0,108710.0,0.16393]
[1756561015278,1.28764057,108720.0,108710.0,0.16393]
[1756561015489,1.28977057,108720.0,108710.0,0.16393]
[1756561018854,1.28977057,108720.0,108710.0,0.16087]
[1756561019069,1.28977057,108720.0,108710.0,0.1588]
[1756561019875,1.28977057,108720.0,108710.0,0.16393]
[1756561020823,1.28764057,108720.0,108710.0,0.16393]
[1756561021038,1.28764344,108720.0,108710.0,0.16393]
[1756561022979,1.26778408,108720.0,108710.0,0.16622969]
[1756561023354,1.2613129,108720.0,108710.0,0.16622969]
[1756561023822,1.2613129,108720.0,108710.0,0.15868]
[1756561023823,1.26344056,108720.0,108710.0,0.15868]
[1756561024040,1.26662056,108720.0,108710.0,0.002]
[1756561024238,1.27309188,108720.0,108710.0,0.15868]
[1756561025837,1.27309188,108720.0,108710.0,0.002]
[1756561026043,1.63914381,108720.0,108710.0,0.15868]
[1756561026410,1.29296938,108720.0,108710.0,0.15868]
[1756561026756,1.63914381,108720.0,108710.0,0.15868]
[1756561028916,1.49739068,108720.0,108710.0,0.15868]
[1756561029510,1.49421068,108720.0,108710.0,0.15868]
[1756561029709,1.14803625,108720.0,108710.0,0.15868]
[1756561030669,1.14156493,108720.0,108710.0,0.15868]
[1756561030882,1.14803578,108720.0,108710.0,0.15868]
[1756561031903,1.14803578,108720.0,108710.0,0.16381]
[1756561032287,1.14590578,108720.0,108710.0,0.16610969]
[1756561033931,1.14590578,108720.0,108710.0,0.16381]
[1756561034128,1.12217791,108720.0,108710.0,0.16381]
[1756561034327,1.14590463,108720.0,108710.0,0.16381]
[1756561034934,1.14590463,108720.0,108710.0,0.16610969]
[1756561038942,1.49207906,108720.0,108710.0,0.002]
[1756561039150,1.60553626,108720.0,108710.0,0.15864]
[1756561039351,1.51723994,108720.0,108710.0,0.15864]
[1756561044118,0.47556665,108720.0,108710.0,0.16077]
[1756561044237,1.14590463,108720.0,108710.0,0.16626969]
[1756561044442,1.14788463,108720.0,108710.0,0.16397]
[1756561044654,1.13063014,108720.0,108710.0,0.16397]
[1756561044863,1.14788944,108720.0,108710.0,0.16397]
[1756561045738,1.14788944,108720.0,108710.0,0.16626969]
[1756561046599,1.14788944,108720.0,108710.0,0.16397]
[1756561047849,1.14788944,108720.0,108710.0,0.16626969]
[1756561048193,1.14788944,108720.0,108710.0,0.16397]
[1756561050485,1.14788944,108720.0,108710.0,0.15864]
[1756561050842,1.14788944,108720.0,108710.0,0.16077]
[1756561051507,1.14788944,108720.0,108710.0,0.16397]
[1756561051684,1.14788944,108720.0,108710.0,0.16626969]
[1756561051893,1.14590845,108720.0,108710.0,0.16626969]
[1756561052530,0.45355959,108720.0,108710.0,0.16626969]
[1756561052731,1.14590845,108720.0,108710.0,0.16626969]
[1756561053076,1.14788845,108720.0,108710.0,0.16397]
[1756561053496,1.14788845,108720.0,108710.0,0.16626969]
[1756561054569,1.14788845,108720.0,108710.0,0.16397]
[1756561054989,1.14788845,108720.0,108710.0,0.16077]
[1756561055292,1.14788845,108720.0,108710.0,0.002]
[1756561055481,1.15366177,108720.0,108710.0,0.15944]
[1756561055708,1.17092006,108720.0,108710.0,0.15944]
[1756561056172,1.17092006,108720.0,108710.0,0.002]
[1756561056392,1.51709449,108720.0,108710.0,0.15944]
[1756561056803,1.17092006,108720.0,108710.0,0.15944]
[1756561059465,1.16777006,108720.0,108710.0,0.15944]
[1756561061586,0.4734412,108720.0,108710.0,0.16706969]
[1756561061798,1.14590806,108720.0,108710.0,0.16706969]
[1756561062457,1.14590843,108720.0,108710.0,0.16706969]
[1756561062878,0.71607938,108720.0,108710.0,0.16706969]
[1756561063096,0.92769817,108720.0,108710.0,0.16706969]
[1756561066081,0.92769788,108720.0,108710.0,0.16706969]
[1756561067013,0.9276978,108720.0,108710.0,0.16706969]
[1756561067660,0.57534894,108720.0,108710.0,0.16706969]
[1756561067875,1.2696778,108720.0,108710.0,0.16706969]
[1756561069025,1.2696778,108720.0,108710.0,0.23782969]
[1756561069221,1.2696778,108720.0,108710.0,0.23553]
[1756561069651,1.2676978,108720.0,108710.0,0.23553]
[1756561071121,1.2676978,108720.0,108710.0,0.50463]
[1756561073414,0.56887714,108720.0,108710.0,0.50463]
[1756561073622,1.261226,108720.0,108710.0,0.50463]
[1756561076483,1.24396765,108720.0,108710.0,0.50463]
[1756561076686,1.26122515,108720.0,108710.0,0.50463]
[1756561077502,1.26122487,108720.0,108710.0,0.50463]
[1756561077936,1.26338487,108720.0,108710.0,0.50463]
[1756561078984,1.26338487,108720.0,108710.0,0.50391]
[1756561079385,0.57103601,108720.0,108710.0,0.50391]
[1756561079521,1.26338487,108720.0,108710.0,0.50391]
[1756561081251,0.57505044,108720.0,108710.0,0.78086572]
[1756561082287,0.90396765,108720.0,108710.0,0.44017001]
[1756561082494,0.9212202,108720.0,108710.0,0.59685001]
[1756561083626,0.90396765,108720.0,108710.0,0.59685001]
[1756561084308,0.90396765,108720.0,108710.0,0.78082572]
[1756561084509,0.90612765,108720.0,108710.0,0.78082572]
[1756561084706,0.90612765,108720.0,108710.0,0.44017001]
[1756561084887,0.90612765,108720.0,108710.0,0.59685001]
[1756561086222,0.90612765,108720.0,108710.0,0.59689001]
[1756561088165,0.90612765,108720.0,108710.0,0.44017001]
[1756561088351,0.90612765,108720.0,108710.0,0.59685001]
[1756561089479,0.90612765,108720.0,108710.0,0.59365001]
[1756561090099,0.90612765,108720.0,108710.0,0.59688001]
[1756561090506,0.21377879,108720.0,108710.0,0.59688001]
[1756561090746,0.55995322,108720.0,108710.0,0.59688001]
[1756561090952,0.55995322,108720.0,108710.0,0.78085572]
[1756561091146,0.55995322,108720.0,108710.0,0.59152001]
[1756561091394,0.55995322,108720.0,108710.0,0.59349001]
[1756561091707,0.55995322,108720.0,108710.0,0.59672001]
[1756561091949,0.21377879,108720.0,108710.0,0.59672001]
[1756561092142,0.55995322,108720.0,108710.0,0.59672001]
[1756561093006,0.55779322,108720.0,108710.0,0.78069572]
[1756561094690,0.55779322,108720.0,108710.0,0.59672001]
[1756561096649,0.55995322,108720.0,108710.0,0.59672001]
[1756561103505,0.55779322,108720.0,108710.0,0.59672001]
[1756561104179,0.55987322,108720.0,108710.0,0.59672001]
[1756561104318,0.55779322,108720.0,108710.0,0.59672001]
[1756561107809,0.55779322,108720.0,108710.0,0.78069572]
[1756561110005,0.72000886,108720.0,108710.0,0.78069572]
[1756561110207,0.55779322,108720.0,108710.0,0.78069572]
[1756561111079,0.90604765,108720.0,108710.0,0.43484001]
[1756561111290,0.90906765,108720.0,108710.0,0.43484001]
[1756561111479,1.26633151,108720.0,108710.0,0.59152001]
[1756561112049,1.26633151,108720.0,108710.0,0.59052001]
[1756561112375,1.26633151,108720.0,108710.0,0.59252001]